bitfinex/quotes_ETHUSD_20241207
["timestamp","ask_amount","ask_price","bid_price","bid_amount"]
[1733604693465,1.04051732,4026.1,4025.9,2.94049683]
[1733604693660,1.04051732,4026.1,4026.0,0.40065655]
[1733604693869,2.33113987,4026.1,4026.0,0.40065655]
[1733604694243,2.33113987,4026.1,4026.0,0.44737743]
[1733604695194,1.29062255,4026.1,4026.0,0.04672088]
[1733604695536,1.2856694,4026.1,4026.0,0.04672088]
[1733604695749,1.04051732,4026.3,4026.0,0.04672088]
[1733604696089,1.04051732,4026.2,4026.1,1.06606864]
[1733604696584,1.04051732,4026.2,4026.1,1.1123408]
[1733604697480,1.04051732,4026.2,4026.1,1.47652788]
[1733604697866,1.04051732,4026.3,4026.1,1.50136322]
[1733604698179,1.04051732,4026.3,4026.1,1.47652788]
[1733604701264,1.04051732,4026.3,4026.1,1.1123408]
[1733604701583,1.04051732,4026.2,4026.1,1.1123408]
[1733604701797,1.90078423,4026.2,4026.1,1.1123408]
[1733604702084,0.86026691,4026.2,4026.1,0.04627216]
[1733604702262,1.0461383,4026.2,4026.1,0.04627216]
[1733604702457,1.0461383,4026.2,4025.8,1.06606864]
[1733604702806,1.90072393,4026.1,4025.9,0.04589059]
[1733604702961,1.90072393,4026.0,4025.9,0.04589059]
[1733604703158,1.90072393,4026.0,4025.7,1.06606864]
[1733604703376,0.86026691,4025.9,4025.8,0.04589059]
[1733604703884,0.86026691,4025.9,4025.7,1.06606864]
[1733604704095,1.04045702,4026.0,4025.8,0.04589059]
[1733604704300,0.86037542,4025.9,4025.8,0.04589059]
[1733604704765,0.86037542,4025.9,4025.7,1.06606864]
[1733604704961,0.86037542,4025.8,4025.7,1.06606864]
[1733604705307,0.86037542,4025.8,4025.7,1.11195923]
[1733604705806,1.04045702,4026.0,4025.7,1.11195923]
[1733604705978,3.19163108,4025.9,4025.7,1.11195923]
[1733604706173,2.15117406,4025.8,4025.7,1.11195923]
[1733604706503,2.15117406,4025.8,4025.7,4.11195923]
[1733604706678,3.19163108,4025.8,4025.7,4.11195923]
[1733604707382,2.15117406,4025.8,4025.7,4.11195923]
[1733604707579,2.15117406,4025.8,4025.7,1.11195923]
[1733604707580,3.19163108,4025.8,4025.7,1.11195923]
[1733604709874,2.15117406,4025.8,4025.7,1.11195923]
[1733604710702,2.15157612,4025.8,4025.7,1.11195923]
[1733604711969,3.19246035,4025.8,4025.7,1.11195923]
[1733604713505,3.19246035,4025.8,4025.7,4.11195923]
[1733604714915,3.19246035,4025.8,4025.7,1.11195923]
[1733604715066,2.15157612,4025.8,4025.7,1.11195923]
[1733604716362,3.19284286,4025.8,4025.7,1.11195923]
[1733604716791,2.15157612,4025.8,4025.7,1.11195923]
[1733604717407,3.19284301,4025.8,4025.7,1.11195923]
[1733604719985,2.15157612,4025.8,4025.7,1.11195923]
[1733604720505,2.15276158,4025.8,4025.7,1.11195923]
[1733604720918,2.15276158,4025.8,4025.7,0.04589059]
[1733604721079,2.81088021,4025.8,4025.7,0.04589059]
[1733604721279,4.36827651,4025.8,4025.3,0.993752]
[1733604721479,1.04151092,4025.6,4025.5,1.06606864]
[1733604721805,2.15276158,4025.6,4025.5,1.06606864]
[1733604722011,3.19429594,4025.6,4025.5,1.1121522]
[1733604722168,2.15276158,4025.6,4025.5,1.1121522]
[1733604722874,3.19429594,4025.6,4025.5,1.1121522]
[1733604724383,3.19429594,4025.6,4025.5,1.32274262]
[1733604724709,0.86110463,4025.6,4025.5,2.15264262]
[1733604725006,1.04153436,4025.9,4025.6,3.0]
[1733604725208,1.04153436,4026.0,4025.8,2.80484864]
[1733604725384,1.04153436,4026.0,4025.9,1.73874]
[1733604725573,3.19455428,4026.0,4025.9,1.73874]
[1733604725799,2.15301992,4026.0,4025.9,4.78491523]
[1733604726042,3.19455428,4026.0,4025.9,4.78491523]
[1733604726540,0.86120797,4026.0,4025.9,4.78491523]
[1733604727811,2.15304042,4026.0,4025.9,4.78491523]
[1733604728322,1.04153436,4026.3,4025.9,4.11224387]
[1733604728534,1.04153436,4026.1,4026.0,5.56459]
[1733604728712,1.04153436,4026.3,4026.2,1.73861]
[1733604728926,2.1530493,4026.3,4026.2,1.76344456]
[1733604729124,0.86121972,4026.3,4026.2,1.76344456]
[1733604729501,1.5573963,4026.6,4026.2,1.76344456]
[1733604729502,1.04153436,4026.6,4026.5,1.73848]
[1733604729635,2.15264378,4026.6,4026.4,1.73852]
[1733604729844,1.5573963,4026.7,4026.4,1.73852]
[1733604729845,3.19398395,4026.5,4026.4,1.73852]
[1733604730939,3.19398395,4026.5,4026.0,1.73868]
[1733604731136,1.04130678,4026.2,4026.0,2.80474864]
[1733604731451,0.00300983,4026.9,4026.1,1.06606864]
[1733604731452,1.5573963,4026.3,4026.1,1.06606864]
[1733604731627,3.19388751,4026.2,4026.1,1.06606864]
[1733604732017,3.19388751,4026.2,4026.1,5.80471864]
[1733604732417,3.19388751,4026.2,4026.1,6.63061864]
[1733604733115,3.19388751,4026.2,4026.1,1.89196864]
[1733604733116,2.15257931,4026.2,4026.1,1.89196864]
[1733604733332,3.19376723,4026.2,4026.1,1.89196864]
[1733604733728,3.19376723,4026.2,4026.1,1.06606864]
[1733604734051,2.15245903,4026.2,4026.1,1.06606864]
[1733604734243,2.15245903,4026.2,4026.1,1.06111548]
[1733604734440,2.15245903,4026.2,4026.1,1.06606864]
[1733604734643,2.15245903,4026.2,4025.9,1.06606864]
[1733604734644,4.2884937,4026.2,4025.9,1.06606864]
[1733604734961,2.15245903,4026.1,4026.0,0.8259]
[1733604735469,0.86098361,4026.1,4026.0,1.89196864]
[1733604735631,1.04132255,4026.3,4026.0,4.89196864]
[1733604735835,0.86091836,4026.2,4026.0,5.95803728]
[1733604736071,3.19362995,4026.1,4026.0,1.89196864]
[1733604736767,3.19362995,4026.1,4026.0,1.93723862]
[1733604737631,0.86092296,4026.1,4026.0,1.93723862]
[1733604737968,1.04132255,4026.2,4026.0,1.93723862]
[1733604738143,2.15233021,4026.1,4026.0,1.93723862]
[1733604738565,2.15229105,4026.1,4026.0,1.93723862]
[1733604738868,0.86092263,4026.1,4026.0,1.93723862]
[1733604739530,0.86092263,4026.1,4026.0,1.11133862]
[1733604739531,0.86089498,4026.1,4026.0,1.11133862]
[1733604739729,0.86092153,4026.1,4026.0,1.11133862]
[1733604739932,0.86091172,4026.1,4026.0,1.11133862]
[1733604740164,2.15231447,4026.1,4026.0,1.11133862]
[1733604740573,3.19363702,4026.1,4026.0,1.11133862]
[1733604740937,2.15231447,4026.1,4026.0,1.11133862]
[1733604741734,3.70971077,4026.1,4026.0,1.11133862]
[1733604741934,4.53916569,4026.1,4026.0,0.04526998]
[1733604742343,4.53916569,4026.1,4025.8,1.06606864]
[1733604742563,1.04129891,4025.9,4025.8,1.06606864]
[1733604742761,3.19361338,4025.9,4025.8,1.06606864]
[1733604743479,3.19360865,4025.9,4025.8,1.06606864]
[1733604743649,3.19360865,4025.9,4025.8,1.11179204]
[1733604743835,2.15231447,4025.9,4025.8,1.11179204]
[1733604744035,3.19362418,4025.9,4025.8,1.11179204]
[1733604744591,2.15231447,4025.9,4025.8,1.11179204]
[1733604744996,3.19363433,4025.9,4025.8,1.11179204]
[1733604746020,2.15231447,4025.9,4025.8,1.11179204]
[1733604746332,0.86091172,4025.9,4025.8,1.11179204]
[1733604746535,2.15243119,4025.9,4025.8,1.11179204]
[1733604748800,0.86091172,4025.9,4025.8,1.11179204]
[1733604749108,2.15240644,4025.9,4025.8,1.11179204]
[1733604749814,2.15243648,4025.9,4025.8,1.11179204]
[1733604750140,0.86091172,4025.9,4025.8,1.11179204]
[1733604750308,2.15243934,4025.9,4025.8,1.11179204]
[1733604750893,0.86091172,4025.9,4025.8,1.11179204]
[1733604751099,0.86098185,4025.9,4025.8,1.11179204]
[1733604751299,0.86099133,4025.9,4025.8,1.11179204]
[1733604752697,0.86100071,4025.9,4025.8,1.11179204]
[1733604754041,2.15253929,4025.9,4025.8,0.0457234]
[1733604754202,2.47016899,4025.9,4025.8,0.0457234]
[1733604754548,2.47016899,4025.9,4025.5,1.06606864]
[1733604754743,0.86100071,4025.8,4025.5,1.06606864]
[1733604755036,1.79920877,4026.0,4025.6,0.04599843]
[1733604755202,2.15266345,4025.9,4025.6,0.04599843]
[1733604755401,0.86106538,4025.8,4025.6,0.04599843]
[1733604755627,1.04130877,4026.0,4025.4,0.8241]
[1733604755841,2.1527327,4025.9,4025.4,0.8241]
[1733604756049,1.04130877,4026.0,4025.8,1.06606864]
[1733604756234,2.15276142,4025.9,4025.8,1.06606864]
[1733604756621,2.15276142,4025.9,4025.8,1.11206707]
[1733604757626,2.15291972,4025.9,4025.8,1.11206707]
[1733604759122,1.04130877,4026.0,4025.8,1.11206707]
[1733604759321,2.15295393,4025.9,4025.8,1.11206707]
[1733604760331,3.1942627,4025.9,4025.8,1.11206707]
[1733604761020,3.1942627,4025.9,4025.8,0.04599843]
[1733604761220,3.1942627,4025.9,4025.7,1.06606864]
[1733604761554,2.15295393,4025.8,4025.7,1.06606864]
[1733604762123,3.1942627,4025.8,4025.7,1.06606864]
[1733604762538,3.19454052,4025.8,4025.7,1.06606864]
[1733604763044,0.8612927,4025.8,4025.7,1.89016864]
[1733604763263,2.15321501,4025.8,4025.7,1.89016864]
[1733604763482,2.15331904,4025.8,4025.7,1.06606864]
[1733604763781,0.8612927,4025.8,4025.7,1.06606864]
[1733604763958,3.19494444,4025.8,4025.7,1.06606864]
[1733604764589,3.19494444,4025.8,4025.3,0.993752]
[1733604764884,1.73859,4026.3,4025.5,1.06606864]
[1733604764885,3.19494444,4025.7,4025.5,1.06606864]
[1733604765078,3.19494444,4025.7,4025.3,0.993752]
[1733604765079,3.19501024,4025.6,4025.3,0.993752]
[1733604765244,3.19501024,4025.5,4025.3,0.993752]
[1733604765444,2.15335991,4025.4,4025.3,0.993752]
[1733604765686,2.15335991,4025.4,4025.0,1.06606864]
[1733604765852,1.0416942,4025.5,4025.0,2.05991764]
[1733604766039,2.15348259,4025.4,4025.0,2.05991764]
[1733604766245,1.0416942,4025.5,4025.0,2.05991764]
[1733604766444,2.15331664,4025.4,4025.0,2.05991764]
[1733604766767,1.0416942,4025.5,4025.1,0.04604665]
[1733604766966,0.86133082,4025.4,4025.2,1.06606864]
[1733604767144,1.0416942,4025.5,4025.2,1.06606864]
[1733604767356,0.86129781,4025.4,4025.2,1.06606864]
[1733604767676,0.86129781,4025.4,4025.0,0.993849]
[1733604767677,1.0416942,4025.5,4025.3,0.04604665]
[1733604767879,2.15323882,4025.4,4025.3,0.04604665]
[1733604768037,2.15323882,4025.4,4025.2,1.06606864]
[1733604768241,0.74629561,4025.3,4025.2,1.06606864]
[1733604770278,0.74629561,4025.3,4025.2,1.5720604]
[1733604770590,2.03803775,4025.3,4025.2,1.5720604]
[1733604770904,0.74629561,4025.3,4025.2,1.5720604]
[1733604771265,2.03785982,4025.3,4025.2,1.5720604]
[1733604771465,0.74629561,4025.3,4025.2,1.5720604]
[1733604772061,2.03786032,4025.3,4025.2,1.5720604]
[1733604772263,1.0416942,4025.4,4025.2,1.5720604]
[1733604772461,1.0416942,4025.4,4025.0,3.993849]
[1733604772693,1.0416942,4025.4,4024.8,0.033993]
[1733604772694,3.10711675,4025.3,4024.8,0.033993]
[1733604772860,1.0416942,4025.0,4024.8,0.033993]
[1733604773066,2.3332692,4024.9,4024.8,0.033993]
[1733604773990,1.0416942,4025.0,4024.8,0.033993]
[1733604774286,1.29086301,4024.9,4024.8,0.033993]
[1733604774460,2.33255818,4024.9,4024.8,0.033993]
[1733604774877,3.10655818,4024.9,4024.8,0.033993]
[1733604775071,2.06486398,4024.9,4024.8,0.033993]
[1733604775669,3.62226028,4024.9,4024.8,0.033993]
[1733604775901,2.06486398,4024.9,4024.8,0.033993]
[1733604776107,3.62226028,4024.9,4024.8,0.033993]
[1733604776312,2.06486398,4024.9,4024.8,0.033993]
[1733604777008,0.774,4024.9,4024.8,0.033993]
[1733604777195,2.06429263,4024.9,4024.8,0.033993]
[1733604777385,3.10430518,4024.9,4024.8,0.07745698]
[1733604777584,3.10430518,4024.9,4024.8,0.033993]
[1733604780087,3.10430518,4024.9,4024.4,1.06606864]
[1733604780405,1.81401255,4024.9,4024.4,1.06606864]
[1733604780597,1.81401255,4024.9,4024.5,0.04346398]
[1733604780797,1.28940407,4024.8,4024.5,0.04346398]
[1733604780998,1.73923,4024.8,4024.5,0.04346398]
[1733604781297,1.7394,4024.4,4023.1,1.73992]
[1733604781497,0.774,4024.5,4023.7,1.06606864]
[1733604781707,1.73947,4024.2,4023.7,1.06606864]
[1733604782196,1.81401255,4024.5,4023.7,1.06606864]
[1733604782505,1.73947,4024.3,4023.7,1.06606864]
[1733604782706,3.55336255,4024.5,4023.7,1.06606864]
[1733604782919,3.55336255,4024.5,4022.8,1.74004]
[1733604782920,0.774,4024.5,4024.0,1.06606864]
[1733604783490,0.774,4024.5,4024.1,0.04437485]
[1733604783929,0.774,4024.5,4024.0,1.06606864]
[1733604784222,0.774,4024.5,4024.2,0.04437485]
[1733604784380,0.774,4024.5,4024.0,1.06606864]
[1733604785018,0.774,4024.5,4023.7,1.06606864]
[1733604785191,1.7394,4024.4,4024.1,0.04437485]
[1733604785394,1.7394,4024.4,4023.7,1.06606864]
[1733604785914,1.7394,4024.4,4023.8,0.04437485]
[1733604786940,1.73944,4024.3,4023.8,0.04437485]
[1733604787786,1.7395,4024.2,4023.8,0.04437485]
[1733604788017,1.7395,4024.2,4023.3,0.88509858]
[1733604788018,1.73957,4024.0,4023.4,1.06606864]
[1733604788388,0.7751,4024.2,4023.3,0.7576]
[1733604788389,0.7751,4024.2,4023.5,0.04464]
[1733604788726,2.32722153,4024.3,4023.0,0.7576]
[1733604788727,0.7751,4023.7,4023.0,0.7576]
[1733604788936,1.73978,4023.5,4023.0,1.82366864]
[1733604789288,1.73978,4023.5,4023.0,1.06606864]
[1733604789526,0.7751,4023.7,4022.7,0.7576]
[1733604789527,1.73983,4023.4,4022.7,0.7576]
[1733604789696,0.251488,4023.5,4022.7,1.82366864]
[1733604789902,0.7751,4023.7,4022.7,1.82366864]
[1733604790100,1.73981,4023.5,4022.7,1.82366864]
[1733604791028,1.73973,4023.6,4023.0,1.06606864]
[1733604791232,0.7751,4023.7,4023.3,1.06606864]
[1733604792093,1.73948,4024.2,4023.6,1.06606864]
[1733604792293,0.251458,4024.1,4023.6,1.06606864]
[1733604793630,1.73948,4024.2,4023.6,1.06606864]
[1733604794492,1.73948,4024.2,4023.3,1.82366864]
[1733604794700,1.73954,4024.1,4023.3,1.82366864]
[1733604796734,1.73954,4024.1,4023.4,0.04549836]
[1733604799047,0.7751,4024.3,4023.4,0.04549836]
[1733604799048,0.18530802,4024.3,4023.4,0.04549836]
[1733604799200,1.73966,4023.8,4023.4,0.04549836]
[1733604799403,1.73966,4023.8,4023.0,1.06606864]
[1733604799625,1.73966,4023.8,4023.5,0.04549836]
[1733604799935,0.7751,4023.6,4023.0,1.06606864]
[1733604800327,0.7751,4023.6,4023.1,0.04549836]
[1733604801321,0.96057367,4024.0,4023.1,0.04549836]
[1733604801532,0.7751,4024.0,4023.4,0.7576]
[1733604802217,0.7751,4024.0,4023.5,0.04549836]
[1733604804355,1.96858892,4024.3,4023.5,0.04549836]
[1733604804698,0.18571134,4024.2,4023.5,0.04549836]
[1733604804815,0.18571134,4024.1,4023.5,0.04549836]
[1733604805020,0.18571134,4024.0,4023.5,0.04549836]
[1733604805257,2.57144,4024.3,4023.5,0.04549836]
[1733604805460,0.18574454,4024.2,4023.5,0.04549836]
[1733604805659,0.18574454,4024.1,4023.5,0.01579836]
[1733604805860,2.57144,4024.3,4023.5,0.04448426]
[1733604806045,0.47258281,4024.2,4023.5,0.04448426]
[1733604806249,0.18573921,4024.1,4023.5,0.04448426]
[1733604806446,0.2868436,4024.2,4023.3,4.87666864]
[1733604806859,0.18578105,4024.1,4023.3,4.87666864]
[1733604807168,1.33726223,4024.7,4024.0,1.06606864]
[1733604807361,1.04899084,4024.7,4024.1,0.8106]
[1733604807564,0.1858089,4024.6,4024.1,0.85500709]
[1733604807863,2.86841968,4024.9,4024.1,0.85500709]
[1733604807864,0.1858089,4024.5,4024.1,0.85500709]
[1733604808018,0.52950313,4024.8,4024.1,0.85500709]
[1733604808226,0.1858027,4024.7,4024.1,0.85500709]
[1733604808439,0.1858027,4024.6,4024.1,0.85500709]
[1733604808642,1.12924968,4024.9,4024.1,0.85500709]
[1733604808875,0.1858381,4024.8,4024.1,0.85500709]
[1733604809060,0.1858381,4024.7,4024.1,0.85500709]
[1733604809372,0.1858381,4024.6,4024.1,0.85500709]
[1733604809556,0.18587151,4024.5,4024.1,0.85500709]
[1733604809743,0.29724968,4024.9,4024.2,1.73946]
[1733604809946,0.18586592,4024.8,4024.2,1.73946]
[1733604810134,0.18586592,4024.7,4024.3,0.04291753]
[1733604810474,0.52955439,4025.1,4024.2,1.73946]
[1733604810653,1.0436252,4025.0,4024.2,1.73946]
[1733604810865,1.0436252,4025.0,4024.1,0.8106]
[1733604810866,0.51295992,4025.1,4024.1,0.8106]
[1733604811056,0.18583765,4025.0,4024.3,0.04291753]
[1733604811373,0.18583765,4024.9,4024.1,0.8106]
[1733604811572,0.18583765,4024.9,4024.4,0.04291753]
[1733604811573,0.832,4024.6,4024.4,0.04291753]
[1733604811770,0.832,4024.6,4023.9,0.8106]
[1733604811771,0.18584714,4024.5,4023.9,0.8106]
[1733604812072,0.832,4024.6,4023.9,0.8106]
[1733604812385,0.832,4024.6,4024.0,0.04260409]
[1733604814393,0.40293444,4024.5,4024.0,0.04260409]
[1733604814537,2.14231444,4024.5,4024.0,0.04260409]
[1733604814737,2.14231444,4024.5,4023.5,1.06606864]
[1733604815272,2.14231444,4024.5,4023.6,0.04245939]
[1733604815768,0.40293444,4024.5,4023.6,0.04245939]
[1733604815981,0.7655,4024.3,4023.6,0.04245939]
[1733604816290,4.07324247,4024.2,4023.4,1.87996864]
[1733604816583,0.85900243,4024.1,4023.4,1.87996864]
[1733604816740,1.73948,4024.2,4023.5,0.0425703]
[1733604816939,2.27246835,4024.2,4023.4,1.87996864]
[1733604817177,2.27246835,4024.2,4023.4,1.06606864]
[1733604817178,1.73956,4024.0,4023.4,1.06606864]
[1733604817542,1.73956,4024.0,4023.5,0.0425703]
[1733604818338,0.85993609,4023.9,4023.5,0.0425703]
[1733604818576,1.73956,4024.0,4023.5,0.0425703]
[1733604818776,1.19122114,4023.9,4023.5,0.0425703]
[1733604818980,2.07086609,4023.9,4023.5,0.0425703]
[1733604819181,1.62560331,4023.8,4023.5,0.0425703]
[1733604819343,0.7655,4023.8,4023.5,0.0425703]
[1733604819545,2.50515,4023.8,4023.5,0.0425703]
[1733604819746,0.8601306,4023.7,4023.5,0.0425703]
[1733604820072,2.34889404,4023.8,4023.4,1.06606864]
[1733604820399,0.86028896,4023.7,4023.4,1.06606864]
[1733604820679,1.37126864,4023.9,4023.5,0.0427391]
[1733604820845,2.15071096,4023.8,4023.5,0.0427391]
[1733604821047,1.37126864,4023.9,4023.5,0.0427391]
[1733604821276,2.15070471,4023.8,4023.5,0.0427391]
[1733604821488,1.04001255,4024.0,4023.5,0.0427391]
[1733604821659,2.1509065,4023.9,4023.5,0.0427391]
[1733604821862,1.04001255,4024.0,4023.5,0.0427391]
[1733604822063,2.15090903,4023.9,4023.5,0.0427391]
[1733604822258,1.04001255,4024.0,4023.5,0.0427391]
[1733604822259,0.86043778,4023.8,4023.5,0.0427391]
[1733604822463,1.04001255,4024.0,4023.5,0.0427391]
[1733604822661,2.15115396,4023.9,4023.5,0.0427391]
[1733604822861,3.19116651,4023.8,4023.3,1.06606864]
[1733604823062,0.86046209,4023.7,4023.3,1.06606864]
[1733604823266,1.04001255,4023.8,4023.4,0.0427391]
[1733604823470,2.15149253,4023.7,4023.4,0.0427391]
[1733604823680,1.04001255,4023.8,4023.4,0.0427391]
[1733604823898,2.15154793,4023.7,4023.4,0.0427391]
[1733604824079,1.04001255,4023.8,4023.4,0.0427391]
[1733604824257,2.1518168,4023.7,4023.4,0.0427391]
[1733604824463,1.73966,4023.8,4023.4,0.0427391]
[1733604824660,1.73966,4023.8,4023.3,1.06606864]
[1733604824661,0.86074048,4023.7,4023.3,1.06606864]
[1733604824858,2.77967255,4023.8,4023.3,1.06606864]
[1733604825111,2.15187013,4023.7,4023.4,0.04271981]
[1733604825395,0.86074805,4023.6,4023.4,0.04271981]
[1733604825610,1.04001255,4023.8,4023.3,1.06606864]
[1733604825813,2.15216883,4023.7,4023.3,1.06606864]
[1733604825979,1.04001255,4023.8,4023.4,0.04304774]
[1733604826165,2.15217608,4023.7,4023.4,0.04304774]
[1733604826370,0.86087252,4023.6,4023.4,0.04304774]
[1733604826580,1.04001255,4023.8,4023.4,0.04304774]
[1733604826903,2.1522328,4023.7,4023.4,0.04304774]
[1733604827229,1.04001255,4023.8,4023.4,0.04304774]
[1733604827376,2.15220801,4023.7,4023.4,0.04304774]
[1733604827581,2.47151041,4023.6,4023.4,0.04304774]
[1733604827805,0.8608832,4023.5,4023.2,1.06606864]
[1733604827977,1.04001255,4023.7,4023.2,1.06606864]
[1733604828161,0.86092617,4023.6,4023.3,0.04304774]
[1733604828365,1.04001255,4023.8,4023.5,1.06606864]
[1733604828604,3.19236742,4023.7,4023.5,1.06606864]
[1733604828794,1.04001255,4023.8,4023.6,0.7827]
[1733604828963,2.15228297,4023.7,4023.6,0.82574774]
[1733604829173,0.86091319,4023.7,4023.6,0.82574774]
[1733604829368,0.86091319,4023.7,4023.6,0.04304774]
[1733604829569,2.15237023,4023.7,4023.6,0.04304774]
[1733604829903,5.12562362,4023.7,4023.1,1.06606864]
[1733604830110,1.04131976,4023.5,4023.1,1.06606864]
[1733604830293,2.15260318,4023.4,4023.2,0.04300915]
[1733604830472,0.86104867,4023.3,4023.2,0.04300915]
[1733604830803,1.04131976,4023.5,4023.2,0.04300915]
[1733604831020,2.15259895,4023.4,4023.2,0.04300915]
[1733604831325,1.04131976,4023.5,4023.2,0.04300915]
[1733604831502,0.86103697,4023.4,4023.2,0.04300915]
[1733604831682,1.04131976,4023.5,4023.2,0.04300915]
[1733604832017,2.15259803,4023.4,4023.2,0.04300915]
[1733604832253,0.86103921,4023.3,4023.2,0.04300915]
[1733604833373,0.86105185,4023.3,4023.2,0.04300915]
[1733604835113,2.15261557,4023.3,4023.2,0.04300915]
[1733604835320,3.66906849,4023.3,4023.2,0.04300915]
[1733604835811,3.66906849,4023.3,4022.8,1.06606864]
[1733604836116,3.19393533,4023.2,4022.9,0.04186656]
[1733604836280,0.86105185,4023.1,4022.9,0.04186656]
[1733604836606,1.04131976,4023.2,4022.8,1.06606864]
[1733604836782,0.86109484,4023.1,4023.0,0.04186656]
[1733604836982,0.86109484,4023.1,4022.8,1.06606864]
[1733604837217,1.04131976,4023.2,4023.0,0.04186656]
[1733604837419,0.86108775,4023.1,4022.8,1.06606864]
[1733604837622,1.04131976,4023.3,4022.8,1.06606864]
[1733604837796,3.19398706,4023.2,4022.8,1.06606864]
[1733604838124,0.86106692,4023.1,4022.8,1.06606864]
[1733604838327,1.04131976,4023.2,4022.8,1.06606864]
[1733604838547,0.8610684,4023.1,4022.8,1.06606864]
[1733604838721,1.04131976,4023.2,4022.8,1.06606864]
[1733604838928,0.86102142,4023.1,4022.8,1.06606864]
[1733604839265,1.04131976,4023.2,4022.8,1.06606864]
[1733604839404,0.86102675,4023.1,4022.8,1.06606864]
[1733604839612,2.78113976,4023.4,4022.8,1.06606864]
[1733604839811,3.19369692,4023.3,4022.8,1.06606864]
[1733604840043,0.86095086,4023.2,4022.8,1.06606864]
[1733604840349,1.04131976,4023.3,4022.8,1.06606864]
[1733604840649,2.15240803,4023.2,4022.8,1.06606864]
[1733604840813,0.86095565,4023.1,4022.8,1.06606864]
[1733604841013,1.04131976,4023.3,4022.8,1.06606864]
[1733604841322,2.15236445,4023.2,4022.8,1.06606864]
[1733604841505,1.04131976,4023.3,4022.8,1.06606864]
[1733604841506,0.86092891,4023.1,4022.8,1.06606864]
[1733604841712,1.04131976,4023.3,4022.9,0.04186656]
[1733604841910,2.15233153,4023.2,4022.8,1.06606864]
[1733604842215,0.86093261,4023.1,4022.8,1.06606864]
[1733604842410,1.04131976,4023.3,4022.9,0.04186656]
[1733604842611,2.15210112,4023.2,4022.8,1.06606864]
[1733604842838,0.86084045,4023.1,4022.8,1.06606864]
[1733604843038,1.04131976,4023.3,4022.8,1.06606864]
[1733604843241,2.15210815,4023.2,4022.9,0.04186656]
[1733604843545,0.86084326,4023.1,4022.8,1.06606864]
[1733604843749,1.04131976,4023.3,4023.0,0.04186656]
[1733604843919,0.86078404,4023.2,4022.8,1.06606864]
[1733604844244,1.04131976,4023.3,4023.1,0.04186656]
[1733604844455,1.04131976,4023.3,4022.8,1.06606864]
[1733604844456,0.86078489,4023.2,4022.8,1.06606864]
[1733604844608,1.04131976,4023.3,4022.8,1.06606864]
[1733604844812,2.15186392,4023.2,4022.8,1.06606864]
[1733604845046,1.04131976,4023.3,4022.8,1.06606864]
[1733604845216,2.15186948,4023.2,4022.8,1.06606864]
[1733604845411,1.04131976,4023.3,4022.8,1.06606864]
[1733604845734,2.15182695,4023.2,4022.8,1.06606864]
[1733604845914,1.04131976,4023.3,4022.8,1.06606864]
[1733604846124,2.15178004,4023.2,4022.8,1.06606864]
[1733604846337,1.04131976,4023.3,4022.8,1.06606864]
[1733604846338,0.86071552,4023.1,4022.8,1.06606864]
[1733604846525,1.04131976,4023.3,4022.8,1.06606864]
[1733604846844,0.86066812,4023.2,4022.8,1.06606864]
[1733604847045,1.04131976,4023.3,4022.8,1.06606864]
[1733604847258,2.15164195,4023.2,4023.1,1.06606864]
[1733604847420,1.5573963,4023.5,4023.1,1.87306864]
[1733604847421,1.04131976,4023.5,4023.1,1.87306864]
[1733604847629,2.1515064,4023.4,4023.1,1.87306864]
[1733604847950,0.86060256,4023.3,4023.1,1.87306864]
[1733604848126,1.04131976,4023.4,4023.1,1.87306864]
[1733604848322,1.04131976,4023.5,4023.1,1.87306864]
[1733604848549,0.86058224,4023.4,4023.1,1.87306864]
[1733604848735,0.86058224,4023.3,4023.1,1.87306864]
[1733604848946,1.04131976,4023.5,4023.1,1.87306864]
[1733604849146,1.5573963,4023.6,4023.1,1.87306864]
[1733604849147,3.19276509,4023.4,4023.1,1.87306864]
[1733604849353,0.86057813,4023.3,4023.1,1.87306864]
[1733604849552,1.04131976,4023.5,4023.1,1.87306864]
[1733604849859,3.19269573,4023.4,4023.1,1.87306864]
[1733604850049,0.86055039,4023.3,4023.1,1.87306864]
[1733604850358,1.04131976,4023.4,4023.1,1.87306864]
[1733604850566,0.86052886,4023.3,4023.1,1.87306864]
[1733604850721,1.04131976,4023.4,4023.1,1.87306864]
[1733604850925,0.86052867,4023.3,4023.1,1.87306864]
[1733604851125,1.04131976,4023.4,4023.1,1.87306864]
[1733604851326,2.15133077,4023.3,4023.1,1.87306864]
[1733604851571,1.04131976,4023.4,4023.1,1.87306864]
[1733604851765,0.86050836,4023.3,4023.1,1.87306864]
[1733604851966,1.04131976,4023.5,4023.1,1.87306864]
[1733604852168,3.37862687,4023.4,4023.1,1.87306864]
[1733604852472,0.86049061,4023.3,4023.1,1.87306864]
[1733604852651,1.04131976,4023.5,4023.1,1.87306864]
[1733604852972,1.5573963,4023.6,4023.1,1.87306864]
[1733604852973,3.37862009,4023.4,4023.1,1.87306864]
[1733604853274,2.15120521,4023.3,4023.1,1.06606864]
[1733604853452,0.86047896,4023.2,4023.1,1.06606864]
[1733604853858,1.04131976,4023.4,4023.1,1.06606864]
[1733604854036,2.15134028,4023.3,4023.1,1.06606864]
[1733604854237,0.86054371,4023.2,4023.1,1.06606864]
[1733604854450,1.04131976,4023.5,4023.1,1.06606864]
[1733604854676,3.19278806,4023.4,4023.1,1.06606864]
[1733604854838,2.15147804,4023.3,4023.1,1.06606864]
[1733604855172,1.04131976,4023.4,4022.8,0.807]
[1733604855381,2.15147068,4023.3,4022.9,1.06606864]
[1733604855537,0.86068501,4023.2,4022.9,1.06606864]
[1733604855872,1.04131976,4023.4,4022.9,4.06606864]
[1733604856238,2.15172988,4023.3,4022.9,4.06606864]
[1733604856433,0.86069195,4023.2,4022.9,4.06606864]
[1733604856638,1.04131976,4023.3,4022.9,4.06606864]
[1733604856838,0.86083435,4023.2,4023.0,0.0404535]
[1733604857138,1.04131976,4023.3,4023.0,0.0404535]
[1733604857338,0.86083465,4023.2,4023.0,0.0404535]
[1733604857562,1.04131976,4023.3,4023.0,0.0404535]
[1733604857759,0.86099904,4023.2,4023.0,0.0404535]
[1733604857968,1.04131976,4023.3,4023.0,0.0404535]
[1733604858188,0.86099953,4023.2,4023.0,0.0404535]
[1733604858348,1.04131976,4023.4,4023.0,0.0404535]
[1733604858544,3.19380884,4023.3,4023.0,0.0404535]
[1733604858745,0.86099563,4023.2,4023.0,0.0404535]
[1733604858952,1.04131976,4023.4,4023.0,0.0404535]
[1733604859163,2.15277546,4023.3,4023.0,0.0404535]
[1733604859340,0.86111018,4023.2,4023.0,0.0404535]
[1733604859536,0.86126854,4023.1,4023.0,0.0404535]
[1733604859736,0.86127668,4023.1,4023.0,0.0404535]
[1733604859939,1.04131976,4023.3,4023.0,0.0404535]
[1733604860276,2.1531898,4023.2,4023.0,0.0404535]
[1733604860479,1.04131976,4023.3,4023.1,1.06606864]
[1733604860680,2.15362188,4023.2,4023.1,1.06606864]
[1733604860973,2.15363773,4023.2,4023.1,1.06606864]